fUSD/lending_fUSD_20250930
["ID","MTS","AMOUNT","RATE_DAILY","PERIOD"]
[388496759,1759217439915,-151.0,0.0001788,2]
[388496760,1759217439924,-151.0,0.0001788,2]
[388496761,1759217439934,-151.0,0.0001788,2]
[388496762,1759217439943,-154.425386,0.0001788,2]
[388496763,1759217439952,-979.77496354,0.0001788,2]
[388496764,1759217439961,-231.214285,0.0001788,2]
[388496765,1759217439970,-231.214285,0.0001788,2]
[388496766,1759217439979,-231.214285,0.0001788,2]
[388496767,1759217439989,-231.214285,0.0001788,2]
[388496768,1759217440002,-151.832029,0.0001788,2]
[388496769,1759217440013,-151.832029,0.0001788,2]
[388496770,1759217440023,-231.214285,0.0001788,2]
[388496772,1759217440032,-231.214285,0.0001788,2]
[388496774,1759217440043,-151.832029,0.0001788,2]
[388496776,1759217440052,-151.832029,0.0001788,2]
[388496777,1759217440061,-231.214285,0.0001788,2]
[388496778,1759217440072,-231.214285,0.0001788,2]
[388496779,1759217440081,-151.832029,0.0001788,2]
[388496780,1759217440091,-151.832029,0.0001788,2]
[388496781,1759217440100,-151.832029,0.0001788,2]
[388496782,1759217440110,-151.832029,0.0001788,2]
[388496783,1759217440119,-151.0,0.0001788,2]
[388496784,1759217440129,-151.0,0.0001788,2]
[388496785,1759217440138,-153.45248,0.0001788,2]
[388496786,1759217440148,-151.0,0.0001788,2]
[388496787,1759217440158,-151.0,0.0001788,2]
[388496788,1759217440174,-162.676161,0.0001788,2]
[388496789,1759217440183,-199.406133,0.0001788,2]
[388496790,1759217440193,-199.406133,0.0001788,2]
[388496791,1759217440202,-199.406133,0.0001788,2]
[388496792,1759217440212,-199.406133,0.0001788,2]
[388496793,1759217440221,-151.0,0.0001788,2]
[388496794,1759217440231,-152.808935,0.0001788,2]
[388496795,1759217440240,-151.0,0.0001788,2]
[388496796,1759217440251,-151.0,0.0001788,2]
[388496797,1759217440260,-151.0,0.0001788,2]
[388496798,1759217440270,-151.0,0.0001788,2]
[388496799,1759217440280,-151.0,0.0001788,2]
[388496800,1759217440290,-151.0,0.0001788,2]
[388496801,1759217440300,-151.0,0.0001788,2]
[388496802,1759217440310,-151.0,0.0001788,2]
[388496803,1759217440319,-151.0,0.0001788,2]
[388496804,1759217440329,-151.0,0.0001788,2]
[388496805,1759217440339,-1000.0,0.0001788,2]
[388496806,1759217440349,-314.10179226,0.0001788,2]
[388496807,1759217440358,-151.0,0.0001788,2]
[388496808,1759217440368,-1067.26757,0.0001788,2]
[388496809,1759217440377,-416.942896,0.0001788,2]
[388496810,1759217440387,-416.942896,0.0001788,2]
[388496811,1759217440399,-416.942896,0.0001788,2]
[388496812,1759217440408,-416.942896,0.0001788,2]
[388496813,1759217440418,-416.942896,0.0001788,2]
[388496814,1759217440428,-416.942896,0.0001788,2]
[388496815,1759217440437,-416.942896,0.0001788,2]
[388496816,1759217440446,-416.942889,0.0001788,2]
[388496817,1759217440456,-275.155413,0.0001788,2]
[388496818,1759217440465,-200.0,0.0001788,2]
[388496819,1759217440474,-151.0,0.0001788,2]
[388496820,1759217440483,-151.0,0.0001788,2]
[388496821,1759217440493,-151.0,0.0001788,2]
[388496822,1759217440503,-151.0,0.0001788,2]
[388496823,1759217440512,-565.382696,0.0001788,2]
[388496824,1759217440521,-565.382696,0.0001788,2]
[388496825,1759217440531,-565.382696,0.0001788,2]
[388496826,1759217440540,-565.382696,0.0001788,2]
[388496827,1759217440550,-565.382696,0.0001788,2]
[388496828,1759217440559,-565.382696,0.0001788,2]
[388496829,1759217440568,-565.382696,0.0001788,2]
[388496830,1759217440578,-565.382686,0.0001788,2]
[388496831,1759217440588,-7900.88080199,0.0001789,2]
[388496832,1759217440597,-700.0,0.000179,2]
[388496833,1759217440607,-400.0,0.00017923,2]
[388496834,1759217440617,-645835.02043307,0.00017924,2]
[388496835,1759217440628,-151.66148744,0.00017924,2]
[388496836,1759217440637,-151.882277,0.00017924,2]
[388496837,1759217440646,-151.0,0.00017924,2]
[388496838,1759217440655,-151.0,0.00017924,2]
[388496839,1759217440665,-151.0,0.00017924,2]
[388496840,1759217440674,-151.0,0.00017924,2]
[388496841,1759217440683,-231.214285,0.00017924,2]
[388496842,1759217440692,-231.214285,0.00017924,2]
[388496843,1759217440702,-151.832029,0.00017924,2]
[388496844,1759217440711,-231.214285,0.00017924,2]
[388496845,1759217440720,-151.832029,0.00017924,2]
[388496846,1759217440729,-231.214285,0.00017924,2]
[388496847,1759217440738,-151.832029,0.00017924,2]
[388496848,1759217440748,-151.832029,0.00017924,2]
[388496849,1759217440757,-151.0,0.00017924,2]
[388496850,1759217440766,-151.0,0.00017924,2]
[388496851,1759217440775,-151.0,0.00017924,2]
[388496852,1759217440785,-199.406133,0.00017924,2]
[388496853,1759217440794,-199.406133,0.00017924,2]
[388496854,1759217440803,-199.406133,0.00017924,2]
[388496855,1759217440813,-199.406133,0.00017924,2]
[388496856,1759217440822,-151.0,0.00017924,2]
[388496857,1759217440831,-151.0,0.00017924,2]
[388496858,1759217440841,-151.0,0.00017924,2]
[388496859,1759217440851,-151.0,0.00017924,2]
[388496860,1759217440860,-151.0,0.00017924,2]
[388496861,1759217440869,-151.0,0.00017924,2]
[388496862,1759217440879,-189.738354,0.00017924,2]
[388496863,1759217440889,-1006.11712991,0.00017934,2]
[388496864,1759217440898,-500.0,0.00017973,2]
[388496865,1759217440907,-500.0,0.00017973,2]
[388496866,1759217440916,-500.21815192,0.00017973,2]
[388496867,1759217440926,-500.0,0.00017973,2]
[388496868,1759217440935,-500.0,0.00017973,2]
[388496869,1759217440944,-500.0,0.00017973,2]
[388496870,1759217440954,-490.72846195,0.00017973,2]
[388496871,1759217440963,-500.0,0.00017973,2]
[388496872,1759217440973,-500.0,0.00017973,2]
[388496873,1759217440982,-500.0,0.00017973,2]
[388496874,1759217440991,-500.0,0.00017973,2]
[388496875,1759217441001,-500.0,0.00017973,2]
[388496876,1759217441010,-500.0,0.00017973,2]
[388496877,1759217441019,-500.0,0.00017973,2]
[388496878,1759217441028,-150.0,0.0001798,2]
[388496879,1759217441038,-221.27,0.00017985,2]
[388496880,1759217441047,-846.36511627,0.00018,2]
[388496881,1759217441057,-3011.63455844,0.00018,2]
[388496882,1759217441066,-170.16,0.00018,2]
[388496883,1759217441076,-301.0,0.00018003,2]
[388496884,1759217441085,-868.63,0.0001805,2]
[388496885,1759217441094,-168.0,0.00018086,2]
[388496886,1759217441104,-168.0,0.00018087,2]
[388496887,1759217441114,-1067.26758,0.0001811,2]
[388496888,1759217441123,-231.214285,0.00018119,2]
[388496889,1759217441133,-231.214285,0.00018119,2]
[388496890,1759217441142,-151.832029,0.00018119,2]
[388496891,1759217441152,-231.214285,0.00018119,2]
[388496892,1759217441161,-151.832029,0.00018119,2]
[388496893,1759217441171,-231.214285,0.00018119,2]
[388496894,1759217441180,-151.832029,0.00018119,2]
[388496895,1759217441190,-151.83202,0.00018119,2]
[388496896,1759217441199,-151.0,0.00018119,2]
[388496897,1759217441209,-151.0,0.00018119,2]
[388496898,1759217441218,-151.0,0.00018119,2]
[388496899,1759217441229,-199.406133,0.00018119,2]
[388496900,1759217441238,-199.406133,0.00018119,2]
[388496901,1759217441249,-199.406133,0.00018119,2]
[388496902,1759217441259,-199.406133,0.00018119,2]
[388496903,1759217441269,-168.0,0.00018124,2]
[388496904,1759217441278,-150.0,0.00018147,2]
[388496905,1759217441287,-500.0,0.00018147,2]
[388496906,1759217441297,-500.0,0.00018147,2]
[388496907,1759217441307,-150.0,0.00018147,2]
[388496908,1759217441316,-602.51845372,0.00018147,2]
[388496909,1759217441326,-500.0,0.00018147,2]
[388496910,1759217441335,-500.0,0.00018147,2]
[388496911,1759217441344,-1818.0,0.00018147,2]
[388496912,1759217441354,-150.0,0.00018147,2]
[388496913,1759217441363,-500.0,0.00018147,2]
[388496914,1759217441373,-150.0,0.00018147,2]
[388496915,1759217441382,-500.0,0.00018147,2]
[388496916,1759217441392,-500.0,0.00018147,2]
[388496917,1759217441401,-1500.0,0.00018163,2]
[388496918,1759217441411,-1301.22856971,0.00018163,2]
[388496919,1759217441421,-1006.11712991,0.0001818,2]
[388496920,1759217441431,-305.95,0.000182,2]
[388496921,1759217441440,-420.0,0.00018221,2]
[388496922,1759217441449,-273.5799973,0.00018239,2]
[388496923,1759217441459,-222.630152,0.00018247,2]
[388496924,1759217441468,-222.630152,0.00018247,2]
[388496925,1759217441477,-222.630152,0.00018247,2]
[388496926,1759217441487,-222.630152,0.00018247,2]
[388496927,1759217441496,-222.630152,0.00018247,2]
[388496928,1759217441507,-222.630152,0.00018247,2]
[388496929,1759217441516,-222.630152,0.00018247,2]
[388496930,1759217441525,-222.630152,0.00018247,2]
[388496931,1759217441534,-222.630152,0.00018247,2]
[388496932,1759217441543,-222.630152,0.00018247,2]
[388496933,1759217441552,-222.630152,0.00018247,2]
[388496934,1759217441562,-222.630152,0.00018247,2]
[388496935,1759217441571,-222.630152,0.00018247,2]
[388496936,1759217441580,-222.630152,0.00018247,2]
[388496937,1759217441590,-222.630152,0.00018247,2]
[388496938,1759217441599,-222.630152,0.00018247,2]
[388496939,1759217441608,-222.630152,0.00018247,2]
[388496940,1759217441617,-222.630152,0.00018247,2]
[388496942,1759217441627,-222.630152,0.00018247,2]
[388496943,1759217441635,-222.630152,0.00018247,2]
[388496944,1759217441646,-1680.0,0.00018305,2]
[388496945,1759217441655,-150.57187654,0.00018318,4]
[388496946,1759217441665,-295.68,0.00018318,2]
[388496947,1759217441674,-868.63,0.00018324,2]
[388496948,1759217441683,-500.0,0.00018338,2]
[388496949,1759217441692,-195.0,0.00018338,2]
[388496950,1759217441702,-300.0,0.00018338,2]
[388496951,1759217441711,-269.0,0.00018339,2]
[388496952,1759217441721,-168.0,0.00018344,2]
[388496953,1759217441730,-200.0,0.00018356,2]
[388496954,1759217441740,-334.5472959,0.00018361,2]
[388496955,1759217441751,-168.0,0.00018386,2]
[388496956,1759217441760,-231.214285,0.0001839,2]
[388496957,1759217441774,-231.214285,0.0001839,2]
[388496958,1759217441784,-231.214285,0.0001839,2]
[388496959,1759217441793,-231.214283,0.0001839,2]
[388496960,1759217441802,-151.0,0.0001839,2]
[388496961,1759217441811,-151.0,0.0001839,2]
[388496962,1759217441820,-199.406133,0.0001839,2]
[388496963,1759217441830,-199.406133,0.0001839,2]
[388496964,1759217441839,-199.406133,0.0001839,2]
[388496965,1759217441849,-199.406141,0.0001839,2]
[388496966,1759217441858,-269.0,0.00018416,2]
[388496967,1759217441867,-1000.0,0.00018421,2]
[388496968,1759217441876,-1000.0,0.00018421,2]
[388496969,1759217441886,-1000.0,0.00018421,2]
[388496970,1759217441898,-1000.0,0.00018421,2]
[388496971,1759217441908,-1000.0,0.00018421,2]
[388496972,1759217441917,-1000.0,0.00018421,2]
[388496973,1759217441926,-1000.0,0.00018421,2]
[388496974,1759217441936,-1000.0,0.00018421,2]
[388496975,1759217441946,-1000.0,0.00018421,2]
[388496976,1759217441956,-264.37435394,0.00018421,2]
[388496977,1759217441966,-1000.0,0.00018421,2]
[388496978,1759217441975,-1000.0,0.00018421,2]
[388496979,1759217441985,-1000.0,0.00018421,2]
[388496980,1759217441994,-1000.0,0.00018421,2]
[388496981,1759217442008,-200.0,0.00018421,2]
[388496982,1759217442017,-500.0,0.00018421,2]
[388496983,1759217442026,-500.0,0.00018421,2]
[388496984,1759217442039,-200.0,0.00018421,2]
[388496985,1759217442049,-503.39652016,0.00018421,2]
[388496986,1759217442059,-501.87235773,0.00018421,2]
[388496987,1759217442068,-1818.0,0.00018421,2]
[388496988,1759217442080,-200.0,0.00018421,2]
[388496989,1759217442091,-500.0,0.00018421,2]
[388496990,1759217442100,-150.0,0.00018421,2]
[388496991,1759217442110,-150.0,0.00018421,2]
[388496992,1759217442119,-187.34,0.00018423,2]
[388496993,1759217442129,-1006.11712991,0.00018425,2]
[388496994,1759217442139,-300.0,0.00018488,2]
[388496995,1759217442149,-304715.70845522,0.0001849,3]
[388496996,1759217442159,-300.0,0.0001849,3]
[388496997,1759217442169,-151.0,0.0001849,2]
[388496998,1759217442178,-151.0,0.0001849,2]
[388496999,1759217442188,-151.0,0.0001849,2]
[388497000,1759217442197,-151.0,0.0001849,2]
[388497001,1759217442207,-223.178493,0.0001849,2]
[388497002,1759217442218,-151.0,0.0001849,2]
[388497003,1759217442228,-151.0,0.0001849,2]
[388497004,1759217442238,-209.028776,0.0001849,2]
[388497005,1759217442248,-150.0,0.0001849,2]
[388497006,1759217442258,-5909.80502986,0.0001849,2]
[388497007,1759217442268,-48263.83421857,0.000185,2]
[388497008,1759217442277,-2087.35304289,0.000185,2]
[388497009,1759217442287,-500.76089024,0.000185,2]
[388497010,1759217442296,-3055.01,0.000185,7]
[388497011,1759217442306,-186.52877473,0.00018511,2]
[388497012,1759217442315,-1000.0,0.00018521,2]
[388497013,1759217442324,-1000.0,0.00018521,2]
[388497014,1759217442333,-1000.0,0.00018521,2]
[388497015,1759217442343,-1000.0,0.00018521,2]
[388497016,1759217442352,-1000.0,0.00018521,2]
[388497017,1759217442361,-1000.0,0.00018521,2]
[388497018,1759217442370,-924.27112096,0.00018521,2]
[388497019,1759217442379,-695.451848,0.00018521,2]
[388497020,1759217442389,-1028.73200569,0.00018521,2]
[388497021,1759217442398,-1000.0,0.00018521,2]
[388497022,1759217442408,-1000.0,0.00018521,2]
[388497023,1759217442417,-1000.0,0.00018521,2]
[388497024,1759217442427,-269.0,0.00018537,2]
[388497025,1759217442436,-168.0,0.00018563,2]
[388497026,1759217442446,-868.63,0.00018598,2]
[388497027,1759217442455,-30762.67707546,0.000186,2]
[388497028,1759217442465,-1067.26758,0.0001861,2]
[388497029,1759217442475,-151.0,0.00018615,2]
[388497030,1759217442485,-301.0,0.00018626,2]
[388497031,1759217442494,-269.0,0.0001863,2]
[388497032,1759217442503,-798.76,0.0001863,2]
[388497033,1759217442513,-767.99,0.0001863,2]
[388497034,1759217442523,-168.0,0.00018642,2]
[388497036,1759217442532,-19414.8056262,0.0001865,2]
[388497037,1759217442542,-273.5799973,0.00018654,2]
[388497038,1759217442551,-168.0,0.00018669,2]
[388497039,1759217442561,-1006.11712991,0.00018671,2]
[388497040,1759217442570,-1000.0,0.00018677,5]
[388497041,1759217442579,-216.67411956,0.00018677,5]
[388497042,1759217442589,-151.0,0.00018687,2]
[388497043,1759217442599,-151.0,0.00018687,2]
[388497044,1759217442609,-151.0,0.00018687,2]
[388497045,1759217442618,-500.0,0.00018695,2]
[388497046,1759217442627,-504.5746551,0.00018695,2]
[388497047,1759217442636,-1818.0,0.00018695,2]
[388497048,1759217442647,-500.0,0.00018695,2]
[388497049,1759217442662,-150.0,0.00018695,2]
[388497050,1759217442679,-26820.63278284,0.00018699,2]
[388497051,1759217442693,-151.0,0.00018699,2]
[388497052,1759217442705,-151.0,0.00018699,2]
[388497053,1759217442719,-151.0,0.00018699,2]
[388497054,1759217442735,-151.0,0.00018703,2]
[388497057,1759217442750,-400.0,0.00018703,2]
[388497059,1759217442766,-1505.80093252,0.00018711,2]
[388497062,1759217442781,-500.0,0.00018712,2]
[388497065,1759217442797,-168.0,0.00018713,2]
[388497068,1759217442810,-168.0,0.00018718,2]
[388497070,1759217442821,-361.56236938,0.00018721,2]
[388497072,1759217442836,-156.10782293,0.00018726,2]
[388497074,1759217442852,-168.0,0.00018773,2]
[388497077,1759217442868,-168.0,0.00018791,2]
[388497079,1759217442884,-151.0,0.00018792,2]
[388497081,1759217442899,-164.39766775,0.00018795,2]
[388497084,1759217442916,-1000.0,0.000188,2]
[388497086,1759217442931,-1000.0,0.000188,2]
[388497088,1759217442949,-1007.0,0.000188,2]
[388497091,1759217442965,-376.4527,0.000188,2]
[388497093,1759217442981,-1000.0,0.000188,2]
[388497113,1759217445300,-150.33,0.000188,2]
[388497114,1759217445366,-150.33,0.000188,2]
[388497115,1759217445428,-150.33,0.000188,2]
[388497116,1759217445454,-150.33,0.000188,2]
[388497117,1759217445479,-150.33,0.000188,2]
[388497118,1759217445488,-150.33,0.000188,2]
[388497120,1759217445498,-150.33,0.000188,2]
[388497122,1759217445508,-150.33,0.000188,2]
[388497124,1759217445518,-150.33,0.000188,2]
[388497125,1759217445527,-150.33,0.000188,2]
[388497126,1759217445537,-150.33,0.000188,2]
[388497127,1759217445546,-150.33,0.000188,2]
[388497128,1759217445555,-150.33,0.000188,2]
[388497129,1759217445566,-150.33,0.000188,2]
[388497130,1759217445575,-150.33,0.000188,2]
[388497131,1759217445584,-150.33,0.000188,2]
[388497132,1759217445594,-150.33,0.000188,2]
[388497133,1759217445603,-150.33,0.000188,2]
[388497134,1759217445612,-150.33,0.000188,2]
[388497135,1759217445622,-150.33,0.000188,2]
[388497136,1759217445631,-150.33,0.000188,2]
[388497138,1759217445641,-168.0,0.00018801,2]
[388497140,1759217445650,-221.27,0.00018803,2]
[388497142,1759217445660,-1182.27885867,0.0001884,2]
[388497144,1759217445669,-1914.27340835,0.0001884,2]
[388497147,1759217445687,-210.1293016,0.0001884,2]
[388497149,1759217445698,-1101.21803052,0.00018846,5]
[388497151,1759217445708,-300.0,0.00018863,2]
[388497153,1759217445719,-400.40359814,0.0001887,2]
[388497155,1759217445730,-1200.99558879,0.0001887,2]
[388497158,1759217445741,-868.63,0.00018872,2]
[388497160,1759217445751,-5000.0,0.00018876,2]
[388497162,1759217445762,-5000.0,0.00018878,2]
[388497165,1759217445773,-3156.8539559,0.00018878,2]
[388497168,1759217445783,-164.81183786,0.0001888,2]
[388497171,1759217445794,-211.23450301,0.0001888,2]
[388497174,1759217445804,-401.34555568,0.0001888,2]
[388497177,1759217445814,-151.0,0.0001888,2]
[388497179,1759217445826,-300.0,0.00018897,2]
[388497183,1759217445836,-460.69,0.000189,2]
[388497186,1759217445847,-1073.25,0.000189,2]
[388497188,1759217445858,-1073.25,0.000189,2]
[388497190,1759217445871,-460.7,0.000189,2]
[388497192,1759217445882,-22741.06,0.000189,2]
[388497194,1759217445893,-22741.06,0.000189,2]
[388497197,1759217445905,-4098.69,0.000189,2]
[388497199,1759217445915,-4098.69,0.000189,2]
[388497201,1759217445926,-395.03,0.000189,2]
[388497202,1759217445937,-395.03,0.000189,2]
[388497203,1759217445947,-151.95,0.000189,2]
[388497204,1759217445958,-151.95,0.000189,2]
[388497205,1759217445969,-715.81,0.000189,2]
[388497207,1759217445979,-715.81,0.000189,2]
[388497209,1759217445990,-991.13,0.000189,2]
[388497211,1759217446005,-991.13,0.000189,2]
[388497213,1759217446017,-629.07,0.000189,2]
[388497216,1759217446027,-345.25211492,0.000189,2]
[388497218,1759217446039,-259.95,0.000189,2]
[388497220,1759217446049,-3195.05,0.000189,2]
[388497222,1759217446059,-3195.05,0.000189,2]
[388497224,1759217446073,-174.35065338,0.000189,2]
[388497227,1759217446091,-151.0,0.000189,2]
[388497228,1759217446101,-188.793817,0.000189,2]
[388497229,1759217446112,-151.0,0.000189,2]
[388497230,1759217446123,-401.34555568,0.00018939,2]
[388497231,1759217446134,-361.56236917,0.00018966,2]
[388497232,1759217446145,-1500.0,0.00018968,2]
[388497233,1759217446156,-1500.0,0.00018968,2]
[388497234,1759217446168,-1500.0,0.00018968,2]
[388497235,1759217446180,-1500.0,0.00018968,2]
[388497236,1759217446191,-209.3592731,0.00018968,2]
[388497238,1759217446203,-1500.0,0.00018968,2]
[388497240,1759217446215,-329.41569127,0.00018968,2]
[388497242,1759217446226,-1500.0,0.00018968,2]
[388497244,1759217446238,-1500.0,0.00018968,2]
[388497246,1759217446250,-1500.0,0.00018968,2]
[388497247,1759217446262,-1006.31622918,0.00018968,2]
[388497248,1759217446275,-1500.0,0.00018968,2]
[388497249,1759217446286,-1500.0,0.00018968,2]
[388497250,1759217446298,-500.0,0.00018969,2]
[388497251,1759217446309,-1818.0,0.00018969,2]
[388497252,1759217446320,-500.0,0.00018969,2]
[388497253,1759217446331,-150.0,0.00018969,2]
[388497254,1759217446343,-485.15897709,0.00018973,2]
[388497256,1759217446355,-512.93992176,0.00018973,2]
[388497258,1759217446366,-150.0,0.00018973,2]
[388497260,1759217446377,-187.34,0.00018975,2]
[388497261,1759217446388,-700.0,0.00018996,2]
[388497262,1759217446400,-401.34555568,0.00018998,2]
[388497263,1759217446411,-1073.25,0.00019,2]
[388497264,1759217446422,-22741.06,0.00019,2]
[388497265,1759217446433,-4098.69,0.00019,2]
[388497266,1759217446445,-395.03,0.00019,2]
[388497267,1759217446456,-151.95,0.00019,2]
[388497268,1759217446474,-715.81,0.00019,2]
[388497269,1759217446486,-991.13,0.00019,2]
[388497270,1759217446498,-3195.05,0.00019,2]
[388497271,1759217446509,-5000.0,0.00019,2]
[388497272,1759217446521,-1580.0,0.00019,5]
[388497273,1759217446533,-1114.32339441,0.00019,3]
[388497274,1759217446545,-5000.0,0.00019,2]
[388497275,1759217446556,-5000.0,0.00019,2]
[388497276,1759217446568,-5000.0,0.00019,2]
[388497277,1759217446580,-5000.0,0.00019,2]
[388497278,1759217446591,-4218.0,0.00019,2]
[388497279,1759217446602,-547.86161297,0.00019,2]
[388497280,1759217446613,-3548.9831118,0.00019,2]
[388497281,1759217446624,-2205.08909367,0.00019,2]
[388497282,1759217446636,-333374.13359808,0.00019,2]
[388497283,1759217446647,-164.39766775,0.00019014,2]
[388497284,1759217446658,-401.34555568,0.00019057,2]
[388497285,1759217446670,-290.28217104,0.00019068,2]
[388497286,1759217446682,-1250.14216786,0.00019068,2]
[388497287,1759217446693,-1500.0,0.00019068,2]
[388497288,1759217446704,-1500.0,0.00019068,2]
[388497289,1759217446715,-1500.0,0.00019068,2]
[388497290,1759217446727,-1500.0,0.00019068,2]
[388497291,1759217446739,-1500.0,0.00019068,2]
[388497292,1759217446751,-755.28457453,0.00019068,2]
[388497293,1759217446762,-1500.0,0.00019068,2]
[388497294,1759217446774,-273.5799973,0.0001907,2]
[388497295,1759217446785,-269.0,0.00019095,2]
[388497296,1759217446797,-1073.25,0.000191,2]
[388497297,1759217446808,-22741.06,0.000191,2]
[388497298,1759217446819,-4098.69,0.000191,2]
[388497299,1759217446831,-395.03,0.000191,2]
[388497300,1759217446843,-151.95,0.000191,2]
[388497301,1759217446859,-715.81,0.000191,2]
[388497302,1759217446871,-991.13,0.000191,2]
[388497303,1759217446882,-3195.05,0.000191,2]
[388497304,1759217446893,-1067.26758,0.0001911,2]
[388497305,1759217446905,-401.34555568,0.00019116,2]
[388497306,1759217446916,-868.63,0.00019146,2]
[388497307,1759217446927,-47196.15905313,0.0001915,2]
[388497308,1759217446938,-647.0,0.00019153,2]
[388497309,1759217446949,-93054.10422127,0.00019159,2]
[388497310,1759217446960,-682.06237314,0.0001916,2]
[388497311,1759217446971,-150.0,0.0001917,2]
[388497312,1759217446982,-401.34555568,0.00019175,2]
[388497313,1759217446993,-1233643.43661795,0.00019177,2]
[388497314,1759217447007,-3579.5199656,0.00019177,2]
[388497315,1759217447018,-150.0,0.00019178,2]
[388497316,1759217447029,-151.0,0.00019178,2]
[388497317,1759217447040,-152.739256,0.00019178,2]
[388497318,1759217447051,-5000.0,0.00019178,2]
[388497319,1759217447061,-150.0,0.00019178,2]
[388497320,1759217447072,-500.0,0.00019178,2]
[388497321,1759217447083,-500.0,0.00019178,2]
[388497322,1759217447094,-500.0,0.00019178,2]
[388497323,1759217447105,-500.0,0.00019178,2]
[388497324,1759217447116,-500.0,0.00019178,2]
[388497325,1759217447127,-500.0,0.00019178,2]
[388497326,1759217447137,-500.0,0.00019178,2]
[388497327,1759217447148,-500.0,0.00019178,2]
[388497328,1759217447159,-150.0,0.00019178,2]
[388497329,1759217447170,-196.91,0.00019233,2]
[388497330,1759217447182,-164.39766775,0.00019233,2]
[388497331,1759217447193,-401.34555568,0.00019234,2]
[388497332,1759217447203,-269.0,0.00019237,2]
[388497333,1759217447214,-500.0,0.00019243,2]
[388497334,1759217447225,-1818.0,0.00019243,2]
[388497335,1759217447236,-500.0,0.00019243,2]
[388497336,1759217447249,-150.0,0.00019243,2]
[388497337,1759217447260,-250.0,0.00019243,2]
[388497338,1759217447270,-401.34555568,0.00019293,2]
[388497339,1759217447280,-361.0,0.00019294,2]
[388497340,1759217447291,-361.0,0.00019294,2]
[388497341,1759217447302,-361.0,0.00019294,2]
[388497342,1759217447312,-361.0,0.00019294,2]
[388497343,1759217447323,-361.0,0.00019294,2]
[388497344,1759217447334,-361.0,0.00019294,2]
[388497345,1759217447346,-361.0,0.00019294,2]
[388497346,1759217447357,-361.0,0.00019294,2]
[388497347,1759217447368,-361.0,0.00019294,2]
[388497348,1759217447379,-361.0,0.00019294,2]
[388497349,1759217447390,-361.0,0.00019294,2]
[388497350,1759217447401,-361.0,0.00019294,2]
[388497351,1759217447412,-361.0,0.00019294,2]
[388497352,1759217447423,-361.0,0.00019294,2]
[388497353,1759217447434,-361.0,0.00019294,2]
[388497354,1759217447445,-361.0,0.00019294,2]
[388497355,1759217447456,-361.0,0.00019294,2]
[388497356,1759217447467,-153.0,0.00019294,2]
[388497358,1759217447477,-153.0,0.00019294,2]
[388497361,1759217447488,-153.0,0.00019294,2]
[388497363,1759217447499,-153.0,0.00019294,2]
[388497365,1759217447510,-153.0,0.00019294,2]
[388497367,1759217447521,-153.0,0.00019294,2]
[388497369,1759217447532,-153.0,0.00019294,2]
[388497371,1759217447543,-153.0,0.00019294,2]
[388497374,1759217447554,-153.0,0.00019294,2]
[388497376,1759217447564,-153.0,0.00019294,2]
[388497378,1759217447575,-361.0,0.00019294,2]